fUSD/lending_fUSD_20240718
["ID","MTS","AMOUNT","RATE_DAILY","PERIOD"]
[332523978,1721288014970,-500.0,0.00023835,2]
[332523979,1721288014980,-500.0,0.00023835,2]
[332523980,1721288014990,-1500.37,0.00023835,2]
[332523981,1721288015000,-533.21,0.00023835,2]
[332523982,1721288015010,-993.33,0.00023835,2]
[332523983,1721288015019,-500.0,0.00023835,2]
[332523984,1721288015029,-500.0,0.00023835,2]
[332523985,1721288015038,-500.0,0.00023835,2]
[332523986,1721288015048,-500.0,0.00023835,2]
[332523987,1721288015057,-513.82716295,0.00023835,2]
[332523988,1721288015067,-614.68,0.00023835,2]
[332523989,1721288015077,-839.63,0.00023835,2]
[332523990,1721288015087,-1099.16,0.00023835,2]
[332523991,1721288015096,-2190.92,0.00023835,2]
[332523992,1721288015106,-500.0,0.00023835,2]
[332523993,1721288015115,-500.0,0.00023835,2]
[332523994,1721288015124,-769.89,0.00023835,2]
[332523995,1721288015134,-500.0,0.00023835,2]
[332523996,1721288015143,-1387.79,0.00023835,2]
[332523997,1721288015153,-860.39,0.00023835,2]
[332523998,1721288015163,-916.75,0.00023835,2]
[332523999,1721288015173,-500.0,0.00023835,2]
[332524000,1721288015183,-500.0,0.00023835,2]
[332524001,1721288015194,-500.0,0.00023835,2]
[332524002,1721288015204,-500.0,0.00023835,2]
[332524003,1721288015213,-621.09,0.00023835,2]
[332524004,1721288015223,-500.0,0.00023835,2]
[332524005,1721288015233,-2607.0,0.00023835,2]
[332524006,1721288015242,-500.0,0.00023835,2]
[332524007,1721288015252,-500.0,0.00023835,2]
[332524008,1721288015262,-934.95,0.00023835,2]
[332524009,1721288015271,-634.32,0.00023835,2]
[332524010,1721288015281,-1185.83,0.00023835,2]
[332524011,1721288015290,-714.68,0.00023835,2]
[332524012,1721288015300,-500.0,0.00023835,2]
[332524013,1721288015309,-500.0,0.00023835,2]
[332524014,1721288015319,-500.0,0.00023835,2]
[332524015,1721288015328,-706.1,0.00023835,2]
[332524016,1721288015338,-992.23,0.00023835,2]
[332524017,1721288015348,-719.06,0.00023835,2]
[332524018,1721288015358,-500.0,0.00023835,2]
[332524019,1721288015368,-500.0,0.00023835,2]
[332524020,1721288015377,-879.71,0.00023835,2]
[332524021,1721288015387,-962.74,0.00023835,2]
[332524022,1721288015396,-502.67690289,0.00023835,2]
[332524023,1721288015407,-4194.17,0.00023835,2]
[332524024,1721288015418,-500.0,0.00023835,2]
[332524025,1721288015428,-500.0,0.00023835,2]
[332524026,1721288015440,-500.0,0.00023835,2]
[332524027,1721288015450,-500.0,0.00023835,2]
[332524028,1721288015462,-500.0,0.00023835,2]
[332524029,1721288015472,-500.0,0.00023835,2]
[332524030,1721288015482,-796.16,0.00023835,2]
[332524031,1721288015492,-1343.67,0.00023835,2]
[332524032,1721288015504,-845.59,0.00023835,2]
[332524033,1721288015514,-500.0,0.00023835,2]
[332524034,1721288015523,-500.0,0.00023835,2]
[332524035,1721288015534,-607.98,0.00023835,2]
[332524036,1721288015543,-500.0,0.00023835,2]
[332524037,1721288015553,-884.87,0.00023835,2]
[332524038,1721288015562,-500.0,0.00023835,2]
[332524039,1721288015572,-500.0,0.00023835,2]
[332524040,1721288015582,-228.61476005,0.00023835,2]
[332524041,1721288015592,-500.0,0.00023835,2]
[332524042,1721288015601,-500.0,0.00023835,2]
[332524043,1721288015611,-563.78,0.00023835,2]
[332524044,1721288015621,-500.0,0.00023835,2]
[332524045,1721288015630,-664.21,0.00023835,2]
[332524046,1721288015643,-500.0,0.00023835,2]
[332524047,1721288015654,-500.0,0.00023835,2]
[332524048,1721288015664,-619.48,0.00023835,2]
[332524049,1721288015674,-1023.41,0.00023835,2]
[332524050,1721288015684,-4286.57,0.00023835,2]
[332524051,1721288015695,-500.0,0.00023835,2]
[332524052,1721288015705,-267.89087992,0.00023835,2]
[332524053,1721288015716,-759.2,0.00023835,2]
[332524054,1721288015727,-500.0,0.00023835,2]
[332524055,1721288015737,-500.0,0.00023835,2]
[332524056,1721288015746,-500.0,0.00023835,2]
[332524057,1721288015756,-1303.0,0.00023835,2]
[332524058,1721288015766,-664.93,0.00023835,2]
[332524059,1721288015776,-500.0,0.00023835,2]
[332524060,1721288015786,-500.0,0.00023835,2]
[332524061,1721288015795,-779.15,0.00023835,2]
[332524062,1721288015804,-799.99,0.00023835,2]
[332524063,1721288015814,-699.13,0.00023835,2]
[332524064,1721288015824,-500.0,0.00023835,2]
[332524065,1721288015834,-840.9,0.00023835,2]
[332524066,1721288015844,-705.02,0.00023835,2]
[332524067,1721288015855,-500.0,0.00023835,2]
[332524068,1721288015866,-500.0,0.00023835,2]
[332524069,1721288015875,-500.0,0.00023835,2]
[332524070,1721288015884,-500.0,0.00023835,2]
[332524071,1721288015893,-500.0,0.00023835,2]
[332524072,1721288015901,-712.43,0.00023835,2]
[332524073,1721288015911,-500.0,0.00023835,2]
[332524074,1721288015921,-615.07,0.00023835,2]
[332524075,1721288015931,-640.55,0.00023835,2]
[332524076,1721288015942,-500.0,0.00023835,2]
[332524077,1721288015952,-500.0,0.00023835,2]
[332524078,1721288015961,-842.93,0.00023835,2]
[332524079,1721288015971,-1213.95,0.00023835,2]
[332524080,1721288015981,-500.0,0.00023835,2]
[332524081,1721288015991,-500.0,0.00023835,2]
[332524082,1721288016001,-500.0,0.00023835,2]
[332524083,1721288016011,-515.65,0.00023835,2]
[332524084,1721288016020,-500.0,0.00023835,2]
[332524085,1721288016030,-500.0,0.00023835,2]
[332524086,1721288016040,-215.72924139,0.00023835,2]
[332524087,1721288016049,-500.0,0.00023835,2]
[332524088,1721288016058,-964.94,0.00023835,2]
[332524089,1721288016068,-592.68,0.00023835,2]
[332524090,1721288016079,-6375.98,0.00023835,2]
[332524091,1721288016089,-1083.93,0.00023835,2]
[332524092,1721288016098,-500.0,0.00023835,2]
[332524093,1721288016108,-1379.21,0.00023835,2]
[332524094,1721288016118,-1037.41,0.00023835,2]
[332524095,1721288016127,-500.0,0.00023835,2]
[332524096,1721288016137,-500.0,0.00023835,2]
[332524097,1721288016146,-500.0,0.00023835,2]
[332524098,1721288016156,-500.0,0.00023835,2]
[332524099,1721288016166,-1777.51,0.00023835,2]
[332524100,1721288016176,-559.08,0.00023835,2]
[332524101,1721288016185,-500.0,0.00023835,2]
[332524102,1721288016199,-500.0,0.00023835,2]
[332524103,1721288016208,-1444.47,0.00023835,2]
[332524104,1721288016219,-500.0,0.00023835,2]
[332524105,1721288016229,-1147.47,0.00023835,2]
[332524106,1721288016239,-500.0,0.00023835,2]
[332524107,1721288016248,-500.0,0.00023835,2]
[332524108,1721288016260,-815.97,0.00023835,2]
[332524109,1721288016270,-500.0,0.00023835,2]
[332524110,1721288016280,-500.0,0.00023835,2]
[332524111,1721288016290,-500.0,0.00023835,2]
[332524112,1721288016300,-1394.22,0.00023835,2]
[332524113,1721288016309,-1149.47,0.00023835,2]
[332524114,1721288016318,-500.0,0.00023835,2]
[332524115,1721288016328,-562.24096476,0.00023835,2]
[332524116,1721288016338,-500.0,0.00023835,2]
[332524117,1721288016347,-588.95,0.00023835,2]
[332524118,1721288016357,-1142.52,0.00023835,2]
[332524119,1721288016366,-7884.99,0.00023835,2]
[332524120,1721288016375,-500.0,0.00023835,2]
[332524121,1721288016385,-2350.96,0.00023835,2]
[332524122,1721288016394,-500.0,0.00023835,2]
[332524123,1721288016403,-500.0,0.00023835,2]
[332524124,1721288016413,-817.71,0.00023835,2]
[332524125,1721288016423,-751.24,0.00023835,2]
[332524126,1721288016433,-567.84,0.00023835,2]
[332524127,1721288016443,-500.0,0.00023835,2]
[332524128,1721288016453,-500.0,0.00023835,2]
[332524129,1721288016464,-518.01,0.00023835,2]
[332524130,1721288016474,-1047.43,0.00023835,2]
[332524131,1721288016483,-9262.82,0.00023835,2]
[332524132,1721288016494,-576.17,0.00023835,2]
[332524133,1721288016504,-500.0,0.00023835,2]
[332524134,1721288016514,-500.0,0.00023835,2]
[332524135,1721288016524,-500.0,0.00023835,2]
[332524136,1721288016537,-500.0,0.00023835,2]
[332524137,1721288016551,-500.0,0.00023835,2]
[332524138,1721288016562,-943.1,0.00023835,2]
[332524139,1721288016702,-714.81,0.00023835,2]
[332524140,1721288016712,-502.13832249,0.00023835,2]
[332524141,1721288016725,-500.0,0.00023835,2]
[332524142,1721288016735,-500.0,0.00023835,2]
[332524143,1721288016745,-559.22,0.00023835,2]
[332524144,1721288016754,-1700.34,0.00023835,2]
[332524145,1721288016764,-671.4,0.00023835,2]
[332524146,1721288016774,-500.0,0.00023835,2]
[332524147,1721288016784,-595.86,0.00023835,2]
[332524148,1721288016794,-500.0,0.00023835,2]
[332524149,1721288016804,-500.0,0.00023835,2]
[332524150,1721288016813,-500.0,0.00023835,2]
[332524151,1721288016822,-500.0,0.00023835,2]
[332524152,1721288016832,-897.02,0.00023835,2]
[332524153,1721288016842,-500.0,0.00023835,2]
[332524154,1721288016852,-500.0,0.00023835,2]
[332524155,1721288016861,-919.85,0.00023835,2]
[332524156,1721288016871,-763.5,0.00023835,2]
[332524157,1721288016880,-812.96,0.00023835,2]
[332524158,1721288016889,-709.03,0.00023835,2]
[332524159,1721288016899,-915.85,0.00023835,2]
[332524160,1721288016910,-500.0,0.00023835,2]
[332524161,1721288016920,-500.0,0.00023835,2]
[332524162,1721288016930,-500.0,0.00023835,2]
[332524163,1721288016942,-1583.56,0.00023835,2]
[332524164,1721288016952,-634.02,0.00023835,2]
[332524165,1721288016962,-1299.19,0.00023835,2]
[332524166,1721288016972,-1450.66,0.00023835,2]
[332524167,1721288016982,-514.58194797,0.00023835,2]
[332524168,1721288016993,-500.0,0.00023835,2]
[332524169,1721288017003,-500.0,0.00023835,2]
[332524170,1721288017013,-708.78,0.00023835,2]
[332524171,1721288017023,-948.76,0.00023835,2]
[332524172,1721288017033,-500.0,0.00023835,2]
[332524173,1721288017043,-500.0,0.00023835,2]
[332524174,1721288017054,-1051.57,0.00023835,2]
[332524175,1721288017064,-2003.88,0.00023835,2]
[332524176,1721288017074,-796.81,0.00023835,2]
[332524177,1721288017084,-601.06,0.00023835,2]
[332524178,1721288017093,-515.65,0.00023835,2]
[332524179,1721288017104,-1013.83,0.00023835,2]
[332524180,1721288017113,-500.0,0.00023835,2]
[332524181,1721288017123,-500.0,0.00023835,2]
[332524182,1721288017134,-544.27,0.00023835,2]
[332524183,1721288017143,-503.35,0.00023835,2]
[332524184,1721288017153,-500.0,0.00023835,2]
[332524185,1721288017162,-1547.31,0.00023835,2]
[332524186,1721288017172,-500.0,0.00023835,2]
[332524187,1721288017182,-500.0,0.00023835,2]
[332524188,1721288017193,-500.0,0.00023835,2]
[332524189,1721288017203,-500.0,0.00023835,2]
[332524190,1721288017213,-500.0,0.00023835,2]
[332524191,1721288017223,-612.66,0.00023835,2]
[332524192,1721288017233,-957.7,0.00023835,2]
[332524193,1721288017243,-999.04,0.00023835,2]
[332524194,1721288017253,-677.55,0.00023835,2]
[332524195,1721288017263,-500.0,0.00023835,2]
[332524196,1721288017273,-549.83,0.00023835,2]
[332524197,1721288017283,-500.0,0.00023835,2]
[332524198,1721288017292,-798.47,0.00023835,2]
[332524199,1721288017302,-500.0,0.00023835,2]
[332524200,1721288017312,-695.01,0.00023835,2]
[332524201,1721288017322,-500.0,0.00023835,2]
[332524202,1721288017332,-500.0,0.00023835,2]
[332524203,1721288017342,-500.0,0.00023835,2]
[332524204,1721288017352,-518.09,0.00023835,2]
[332524205,1721288017363,-500.0,0.00023835,2]
[332524206,1721288017372,-500.0,0.00023835,2]
[332524207,1721288017382,-813.28,0.00023835,2]
[332524208,1721288017391,-500.0,0.00023835,2]
[332524209,1721288017401,-1656.81,0.00023835,2]
[332524210,1721288017411,-945.22,0.00023835,2]
[332524211,1721288017421,-947.17,0.00023835,2]
[332524212,1721288017431,-500.0,0.00023835,2]
[332524213,1721288017443,-539.79,0.00023835,2]
[332524214,1721288017452,-500.0,0.00023835,2]
[332524215,1721288017463,-706.37,0.00023835,2]
[332524216,1721288017473,-505.10356054,0.00023835,2]
[332524217,1721288017483,-500.0,0.00023835,2]
[332524218,1721288017494,-307.38522425,0.00023835,2]
[332524219,1721288017504,-1135.75,0.00023835,2]
[332524220,1721288017514,-500.0,0.00023835,2]
[332524221,1721288017524,-673.53,0.00023835,2]
[332524222,1721288017534,-3128.96,0.00023835,2]
[332524223,1721288017544,-584.22638031,0.00023835,2]
[332524224,1721288017554,-500.0,0.00023835,2]
[332524225,1721288017564,-500.0,0.00023835,2]
[332524226,1721288017575,-500.0,0.00023835,2]
[332524227,1721288017585,-500.0,0.00023835,2]
[332524228,1721288017594,-557.31,0.00023835,2]
[332524229,1721288017605,-669.1,0.00023835,2]
[332524230,1721288017614,-3223.32,0.00023835,2]
[332524231,1721288017624,-842.49,0.00023835,2]
[332524232,1721288017635,-500.0,0.00023835,2]
[332524233,1721288017648,-542.57,0.00023835,2]
[332524234,1721288017659,-836.84,0.00023835,2]
[332524235,1721288017668,-884.02,0.00023835,2]
[332524236,1721288017679,-500.0,0.00023835,2]
[332524237,1721288017688,-1416.46,0.00023835,2]
[332524238,1721288017698,-525.77,0.00023835,2]
[332524239,1721288017709,-500.0,0.00023835,2]
[332524240,1721288017720,-808.77,0.00023835,2]
[332524241,1721288017731,-500.0,0.00023835,2]
[332524242,1721288017740,-500.0,0.00023835,2]
[332524243,1721288017750,-888.04,0.00023835,2]
[332524244,1721288017760,-813.18,0.00023835,2]
[332524245,1721288017770,-2204.96,0.00023835,2]
[332524246,1721288017780,-500.0,0.00023835,2]
[332524247,1721288017790,-617.34,0.00023835,2]
[332524248,1721288017800,-503.15,0.00023835,2]
[332524249,1721288017810,-385.30376122,0.00023835,2]
[332524250,1721288017820,-500.0,0.00023835,2]
[332524251,1721288017830,-500.0,0.00023835,2]
[332524252,1721288017840,-550.97,0.00023835,2]
[332524253,1721288017850,-500.0,0.00023835,2]
[332524254,1721288017860,-500.0,0.00023835,2]
[332524255,1721288017870,-773.79,0.00023835,2]
[332524256,1721288017880,-1258.11,0.00023835,2]
[332524257,1721288017890,-556.49,0.00023835,2]
[332524258,1721288017899,-1541.61,0.00023835,2]
[332524259,1721288017909,-1497.76,0.00023835,2]
[332524260,1721288017919,-500.0,0.00023835,2]
[332524261,1721288017928,-500.0,0.00023835,2]
[332524262,1721288017940,-923.36,0.00023835,2]
[332524263,1721288017950,-500.0,0.00023835,2]
[332524264,1721288017960,-500.0,0.00023835,2]
[332524265,1721288017969,-698.16,0.00023835,2]
[332524266,1721288017979,-1777.63,0.00023835,2]
[332524267,1721288017990,-1751.66,0.00023835,2]
[332524268,1721288017999,-500.0,0.00023835,2]
[332524269,1721288018009,-500.0,0.00023835,2]
[332524270,1721288018019,-500.0,0.00023835,2]
[332524271,1721288018029,-1440.65,0.00023835,2]
[332524272,1721288018040,-702.74,0.00023835,2]
[332524273,1721288018050,-748.62,0.00023835,2]
[332524274,1721288018060,-500.0,0.00023835,2]
[332524275,1721288018070,-500.0,0.00023835,2]
[332524276,1721288018080,-500.0,0.00023835,2]
[332524277,1721288018089,-500.0,0.00023835,2]
[332524278,1721288018099,-600.34,0.00023835,2]
[332524279,1721288018110,-508.95517702,0.00023835,2]
[332524280,1721288018119,-1459.37,0.00023835,2]
[332524281,1721288018129,-500.0,0.00023835,2]
[332524282,1721288018139,-834.65,0.00023835,2]
[332524283,1721288018148,-574.9,0.00023835,2]
[332524284,1721288018158,-967.34,0.00023835,2]
[332524285,1721288018167,-500.0,0.00023835,2]
[332524286,1721288018177,-945.46,0.00023835,2]
[332524287,1721288018189,-500.0,0.00023835,2]
[332524288,1721288018198,-500.0,0.00023835,2]
[332524289,1721288018208,-6789.46,0.00023835,2]
[332524290,1721288018218,-1649.03,0.00023835,2]
[332524291,1721288018227,-1351.16,0.00023835,2]
[332524292,1721288018237,-846.83,0.00023835,2]
[332524293,1721288018246,-3838.48,0.00023835,2]
[332524294,1721288018256,-727.83,0.00023835,2]
[332524295,1721288018265,-500.0,0.00023835,2]
[332524296,1721288018275,-500.0,0.00023835,2]
[332524297,1721288018285,-500.0,0.00023835,2]
[332524298,1721288018295,-1099.8,0.00023835,2]
[332524299,1721288018304,-592.88,0.00023835,2]
[332524300,1721288018314,-500.0,0.00023835,2]
[332524301,1721288018323,-758.27,0.00023835,2]
[332524302,1721288018333,-1314.69,0.00023835,2]
[332524303,1721288018342,-660.25,0.00023835,2]
[332524304,1721288018353,-500.0,0.00023835,2]
[332524305,1721288018362,-1225.2,0.00023835,2]
[332524306,1721288018372,-500.0,0.00023835,2]
[332524307,1721288018382,-690.8,0.00023835,2]
[332524308,1721288018392,-500.0,0.00023835,2]
[332524309,1721288018402,-815.9,0.00023835,2]
[332524310,1721288018411,-500.0,0.00023835,2]
[332524311,1721288018421,-1445.6,0.00023835,2]
[332524312,1721288018430,-1000.0,0.00023835,2]
[332524313,1721288018439,-1211.24,0.00023835,2]
[332524314,1721288018449,-764.9,0.00023835,2]
[332524315,1721288018459,-500.0,0.00023835,2]
[332524316,1721288018470,-500.0,0.00023835,2]
[332524317,1721288018480,-1017.79,0.00023835,2]
[332524318,1721288018490,-500.0,0.00023835,2]
[332524319,1721288018500,-504.5761821,0.00023835,2]
[332524320,1721288018509,-500.0,0.00023835,2]
[332524321,1721288018518,-500.0,0.00023835,2]
[332524322,1721288018527,-819.77,0.00023835,2]
[332524323,1721288018537,-843.65,0.00023835,2]
[332524324,1721288018546,-508.09,0.00023835,2]
[332524325,1721288018556,-1121.8,0.00023835,2]
[332524326,1721288018565,-500.0,0.00023835,2]
[332524327,1721288018575,-4510.49,0.00023835,2]
[332524328,1721288018584,-500.0,0.00023835,2]
[332524329,1721288018594,-500.0,0.00023835,2]
[332524330,1721288018603,-548.62,0.00023835,2]
[332524331,1721288018618,-615.98,0.00023835,2]
[332524332,1721288018627,-732.51,0.00023835,2]
[332524333,1721288018638,-500.0,0.00023835,2]
[332524334,1721288018651,-500.0,0.00023835,2]
[332524335,1721288018661,-504.35414802,0.00023835,2]
[332524336,1721288018671,-727.51,0.00023835,2]
[332524337,1721288018681,-500.0,0.00023835,2]
[332524338,1721288018692,-699.69,0.00023835,2]
[332524339,1721288018702,-500.0,0.00023835,2]
[332524340,1721288018712,-780.84,0.00023835,2]
[332524341,1721288018723,-985.19,0.00023835,2]
[332524342,1721288018732,-500.0,0.00023835,2]
[332524343,1721288018742,-2219.16,0.00023835,2]
[332524344,1721288018752,-500.0,0.00023835,2]
[332524345,1721288018762,-2008.64,0.00023835,2]
[332524346,1721288018773,-661.47,0.00023835,2]
[332524347,1721288018783,-707.34,0.00023835,2]
[332524348,1721288018793,-776.84,0.00023835,2]
[332524349,1721288018806,-500.0,0.00023835,2]
[332524350,1721288018818,-6067.08,0.00023835,2]
[332524351,1721288018829,-500.0,0.00023835,2]
[332524352,1721288018839,-2197.33,0.00023835,2]
[332524353,1721288018849,-500.0,0.00023835,2]
[332524354,1721288018860,-500.0,0.00023835,2]
[332524355,1721288018869,-813.45,0.00023835,2]
[332524356,1721288018879,-500.0,0.00023835,2]
[332524357,1721288018889,-500.0,0.00023835,2]
[332524358,1721288019293,-501.39556436,0.00023835,2]
[332524359,1721288019306,-1222.6,0.00023835,2]
[332524360,1721288019316,-685.95,0.00023835,2]
[332524361,1721288019325,-885.84,0.00023835,2]
[332524362,1721288019334,-500.0,0.00023835,2]
[332524363,1721288019343,-500.0,0.00023835,2]
[332524364,1721288019353,-500.0,0.00023835,2]
[332524365,1721288019365,-589.04,0.00023835,2]
[332524366,1721288019374,-703.44,0.00023835,2]
[332524367,1721288019384,-919.77,0.00023835,2]
[332524368,1721288019394,-2956.08,0.00023835,2]
[332524369,1721288019403,-500.0,0.00023835,2]
[332524370,1721288019413,-500.0,0.00023835,2]
[332524371,1721288019423,-699.95,0.00023835,2]
[332524372,1721288019433,-500.0,0.00023835,2]
[332524373,1721288019445,-758.73,0.00023835,2]
[332524374,1721288019455,-500.0,0.00023835,2]
[332524375,1721288019464,-1023.99,0.00023835,2]
[332524376,1721288019474,-500.0,0.00023835,2]
[332524377,1721288019483,-500.0,0.00023835,2]
[332524378,1721288019493,-500.0,0.00023835,2]
[332524379,1721288019503,-500.0,0.00023835,2]
[332524380,1721288019513,-893.45,0.00023835,2]
[332524381,1721288019522,-1159.85,0.00023835,2]
[332524382,1721288019531,-500.0,0.00023835,2]
[332524383,1721288019541,-500.0,0.00023835,2]
[332524384,1721288019551,-500.0,0.00023835,2]
[332524385,1721288019561,-500.0,0.00023835,2]
[332524386,1721288019570,-500.0,0.00023835,2]
[332524387,1721288019582,-799.42,0.00023835,2]
[332524388,1721288019592,-500.0,0.00023835,2]
[332524389,1721288019603,-500.0,0.00023835,2]
[332524390,1721288019613,-500.0,0.00023835,2]
[332524391,1721288019625,-507.01511602,0.00023835,2]
[332524392,1721288019635,-500.0,0.00023835,2]
[332524393,1721288019648,-500.0,0.00023835,2]
[332524394,1721288019658,-500.0,0.00023835,2]
[332524395,1721288019667,-622.67,0.00023835,2]
[332524396,1721288019677,-267.41464615,0.00023839,2]
[332524397,1721288019688,-500.0,0.00023841,2]
[332524398,1721288019700,-500.0,0.00023842,2]
[332524399,1721288019710,-500.0,0.00023849,2]
[332524400,1721288019721,-500.0,0.00023851,2]
[332524401,1721288019731,-500.0,0.00023858,2]
[332524402,1721288019742,-150.0,0.00023859,2]
[332524403,1721288019751,-500.0,0.0002386,2]
[332524404,1721288019761,-500.0,0.00023867,2]
[332524405,1721288019771,-166.66666667,0.00023874,2]
[332524406,1721288019780,-500.0,0.00023876,2]
[332524407,1721288019790,-166.90315979,0.00023879,2]
[332524408,1721288019799,-267.41464615,0.00023883,2]
[332524409,1721288019809,-500.0,0.00023885,2]
[332524410,1721288019820,-197.82356527,0.0002389,2]
[332524411,1721288019829,-500.0,0.00023893,2]
[332524412,1721288019839,-179.75956163,0.00023898,2]
[332524413,1721288019850,-500.0,0.00023902,2]
[332524414,1721288019859,-500.0,0.00023911,2]
[332524415,1721288019868,-500.0,0.0002392,2]
[332524416,1721288019878,-197.82356527,0.0002392,2]
[332524417,1721288019887,-500.0,0.00023929,2]
[332524418,1721288019896,-500.0,0.00023937,2]
[332524419,1721288019906,-500.0,0.00023946,2]
[332524420,1721288019916,-445.12807451,0.00023947,2]
[332524421,1721288019925,-500.0,0.00023955,2]
[332524422,1721288019935,-150.0,0.0002396,2]
[332524423,1721288019947,-500.0,0.00023964,2]
[332524424,1721288019958,-979.61,0.00023964,2]
[332524425,1721288019968,-934.65578593,0.00023964,2]
[332524426,1721288019978,-156.65385586,0.00023966,2]
[332524427,1721288019987,-2062.94975587,0.00023972,2]
[332524428,1721288019997,-500.0,0.00023973,2]
[332524429,1721288020006,-500.0,0.00023981,2]
[332524430,1721288020016,-500.0,0.0002399,2]
[332524431,1721288020025,-500.0,0.00023999,2]
[332524432,1721288020035,-936.5575774,0.00024,25]
[332524433,1721288020044,-392.89082806,0.00024,6]
[332524434,1721288020055,-1528.96027712,0.00024,2]
[332524435,1721288020065,-296.92302821,0.00024,2]
[332524436,1721288020074,-961.96502693,0.00024,2]
[332524437,1721288020084,-2000.0,0.00024,2]
[332524438,1721288020094,-200.0,0.00024,2]
[332524439,1721288020103,-2000.0,0.00024,2]
[332524440,1721288020114,-200.0,0.00024,2]
[332524441,1721288020124,-2000.0,0.00024,2]
[332524442,1721288020134,-200.0,0.00024,2]
[332524443,1721288020144,-363.89582434,0.00024,2]
[332524444,1721288020154,-445.12807451,0.00024002,2]
[332524445,1721288020164,-161.84605211,0.00024027,2]
[332524446,1721288020175,-414.54398897,0.00024029,2]
[332524447,1721288020186,-550.98546916,0.00024034,2]
[332524448,1721288020197,-166.66666667,0.00024049,2]
[332524449,1721288020207,-2062.94975587,0.00024049,2]
[332524450,1721288020216,-445.12807451,0.00024066,2]
[332524451,1721288020226,-500.0,0.00024109,2]
[332524452,1721288020237,-1548.92,0.00024109,2]
[332524453,1721288020247,-151.04676691,0.00024109,2]
[332524454,1721288020258,-500.0,0.00024109,2]
[332524455,1721288020268,-500.0,0.00024109,2]
[332524456,1721288020279,-500.0,0.00024109,2]
[332524457,1721288020291,-500.0,0.00024109,2]
[332524458,1721288020301,-500.0,0.00024109,2]
[332524459,1721288020313,-500.0,0.00024109,2]
[332524460,1721288020322,-500.0,0.00024109,2]
[332524461,1721288020332,-500.0,0.00024109,2]
[332524462,1721288020343,-903.45,0.00024109,2]
[332524463,1721288020353,-500.0,0.00024109,2]
[332524464,1721288020363,-497.77837245,0.00024109,2]
[332524465,1721288020373,-500.0,0.00024109,2]
[332524466,1721288020383,-873.73,0.00024109,2]
[332524467,1721288020393,-500.0,0.00024109,2]
[332524468,1721288020404,-500.0,0.00024109,2]
[332524469,1721288020414,-500.0,0.00024109,2]
[332524470,1721288020423,-500.0,0.00024109,2]
[332524471,1721288020432,-500.0,0.00024109,2]
[332524472,1721288020443,-1146.78,0.00024109,2]
[332524473,1721288020453,-500.0,0.00024109,2]
[332524474,1721288020462,-500.0,0.00024109,2]
[332524475,1721288020473,-500.0,0.00024109,2]
[332524476,1721288020483,-500.0,0.00024109,2]
[332524477,1721288020495,-500.0,0.00024109,2]